[Event "Late-Titled-Tuesday-Blitz-February-06-2024"]
[Site "Chess.com"]
[Date "2024.02.06"]
[Round "7"]
[White "prime-morty"]
[Black "Jarrahi2452"]
[Result "0-1"]
[WhiteElo "2590"]
[BlackElo "2800"]
[TimeControl "180+1"]
[EndTime "15:15:11 PST"]
[Termination "Jarrahi2452 won by resignation"]

1. c4 {[%clk 0:03:00.9]} 1... c6 {[%clk 0:02:58.8]} 2. Nc3 {[%clk 0:03:01.1]}
2... d5 {[%clk 0:02:56.8]} 3. e3 {[%clk 0:03:01.7]} 3... Nf6 {[%clk 0:02:56.5]}
4. Nf3 {[%clk 0:03:01.8]} 4... a6 {[%clk 0:02:52.9]} 5. b3 {[%clk 0:03:01.3]}
5... Bf5 {[%clk 0:02:52.6]} 6. Bb2 {[%clk 0:03:00.4]} 6... e6 {[%clk 0:02:52.7]}
7. Be2 {[%clk 0:02:59.2]} 7... h6 {[%clk 0:02:52.4]} 8. h3 {[%clk 0:02:58.3]}
8... Bd6 {[%clk 0:02:52.7]} 9. g4 {[%clk 0:02:58.3]} 9... Bg6 {[%clk 0:02:49.2]}
10. Rg1 {[%clk 0:02:57.7]} 10... Nbd7 {[%clk 0:02:46.1]} 11. h4 {[%clk
0:02:57.2]} 11... Ne5 {[%clk 0:02:36.1]} 12. Nxe5 {[%clk 0:02:44.3]} 12... Bxe5
{[%clk 0:02:37]} 13. d4 {[%clk 0:02:25.9]} 13... Bc7 {[%clk 0:02:35.9]} 14. h5
{[%clk 0:02:20]} 14... Bh7 {[%clk 0:02:33.9]} 15. g5 {[%clk 0:02:19]} 15... hxg5
{[%clk 0:02:31.5]} 16. Rxg5 {[%clk 0:02:19.1]} 16... Ne4 {[%clk 0:02:18.2]} 17.
Nxe4 {[%clk 0:02:07.1]} 17... Bxe4 {[%clk 0:02:16.4]} 18. Rxg7 {[%clk
0:02:07.3]} 18... Qh4 {[%clk 0:02:06.9]} 19. Bf3 {[%clk 0:01:32.2]} 19... Ba5+
{[%clk 0:01:52.5]} 20. Kf1 {[%clk 0:01:09.6]} 20... Qh3+ {[%clk 0:01:38.5]} 21.
Bg2 {[%clk 0:01:07.2]} 21... Bxg2+ {[%clk 0:01:36.1]} 22. Rxg2 {[%clk
0:01:06.8]} 22... Rg8 {[%clk 0:01:28.9]} 0-1

[Event "Late-Titled-Tuesday-Blitz-February-06-2024"]
[Site "Chess.com"]
[Date "2024.02.06"]
[Round "7"]
[White "VitaliyChayka"]
[Black "Statham_01"]
[Result "1-0"]
[WhiteElo "2449"]
[BlackElo "2584"]
[TimeControl "180+1"]
[EndTime "15:15:23 PST"]
[Termination "VitaliyChayka won by resignation"]

1. d4 {[%clk 0:03:00.9]} 1... Nf6 {[%clk 0:02:58.7]} 2. Bf4 {[%clk 0:03:01.5]}
2... e6 {[%clk 0:02:58.9]} 3. e3 {[%clk 0:03:02.2]} 3... d5 {[%clk 0:02:58.6]}
4. c3 {[%clk 0:03:02.8]} 4... c5 {[%clk 0:02:59.2]} 5. Nd2 {[%clk 0:03:02.8]}
5... Nc6 {[%clk 0:02:59.9]} 6. Ngf3 {[%clk 0:03:03.2]} 6... Bd6 {[%clk
0:03:00.6]} 7. Bg3 {[%clk 0:03:03.7]} 7... O-O {[%clk 0:03:00.4]} 8. Bd3 {[%clk
0:03:04.3]} 8... Re8 {[%clk 0:03:00.9]} 9. Ne5 {[%clk 0:03:04.7]} 9... Qc7
{[%clk 0:02:58.7]} 10. f4 {[%clk 0:03:04.3]} 10... Ne7 {[%clk 0:02:56.5]} 11.
Qf3 {[%clk 0:03:01.4]} 11... b6 {[%clk 0:02:55.2]} 12. Bf2 {[%clk 0:03:01.2]}
12... Bb7 {[%clk 0:02:54.4]} 13. g4 {[%clk 0:03:00.7]} 13... Bxe5 {[%clk
0:02:20.3]} 14. fxe5 {[%clk 0:03:00.1]} 14... Ne4 {[%clk 0:01:55.9]} 15. Nxe4
{[%clk 0:02:59.4]} 15... dxe4 {[%clk 0:01:56.8]} 16. Bxe4 {[%clk 0:03:00.1]}
16... Bxe4 {[%clk 0:01:55.4]} 17. Qxe4 {[%clk 0:03:01]} 17... a5 {[%clk
0:01:49.1]} 18. O-O {[%clk 0:03:00.1]} 18... Rad8 {[%clk 0:01:37.9]} 19. Bh4
{[%clk 0:02:58.6]} 19... b5 {[%clk 0:01:19.1]} 20. Rxf7 {[%clk 0:02:31.8]} 20...
Kxf7 {[%clk 0:01:14.7]} 21. Qxh7 {[%clk 0:02:32.4]} 21... Rh8 {[%clk 0:00:50.2]}
22. Rf1+ {[%clk 0:02:16.6]} 22... Nf5 {[%clk 0:00:49.9]} 23. Rxf5+ {[%clk
0:01:38.6]} 23... exf5 {[%clk 0:00:49.1]} 24. e6+ {[%clk 0:01:38.7]} 24... Kxe6
{[%clk 0:00:40.2]} 25. Qxf5+ {[%clk 0:01:38.5]} 25... Kd6 {[%clk 0:00:38.6]} 26.
Bg3+ {[%clk 0:01:39]} 26... Kc6 {[%clk 0:00:39]} 27. Qxc5+ {[%clk 0:01:38.8]}
1-0

[Event "Late-Titled-Tuesday-Blitz-February-06-2024"]
[Site "Chess.com"]
[Date "2024.02.06"]
[Round "7"]
[White "Vladimir_Zakhartsov"]
[Black "Beca95"]
[Result "1-0"]
[WhiteElo "2838"]
[BlackElo "2939"]
[TimeControl "180+1"]
[EndTime "15:15:38 PST"]
[Termination "Vladimir_Zakhartsov won by resignation"]

1. Nf3 {[%clk 0:03:00.9]} 1... d5 {[%clk 0:02:58.7]} 2. g3 {[%clk 0:03:00.7]}
2... Bg4 {[%clk 0:02:58.7]} 3. Bg2 {[%clk 0:03:00]} 3... e6 {[%clk 0:02:58.7]}
4. c4 {[%clk 0:03:00]} 4... c6 {[%clk 0:02:56.5]} 5. Qb3 {[%clk 0:02:59.8]} 5...
Qb6 {[%clk 0:02:55.5]} 6. d3 {[%clk 0:03:00.2]} 6... Nd7 {[%clk 0:02:54.5]} 7.
Nc3 {[%clk 0:02:58.1]} 7... Ngf6 {[%clk 0:02:54.3]} 8. Be3 {[%clk 0:02:57.4]}
8... Bc5 {[%clk 0:02:53.2]} 9. Bxc5 {[%clk 0:02:55.5]} 9... Nxc5 {[%clk
0:02:45]} 10. Qc2 {[%clk 0:02:44]} 10... Bxf3 {[%clk 0:02:43.9]} 11. Bxf3 {[%clk
0:02:41.4]} 11... d4 {[%clk 0:02:43.6]} 12. Nb1 {[%clk 0:02:37.7]} 12... e5
{[%clk 0:02:40.6]} 13. Nd2 {[%clk 0:02:37]} 13... O-O {[%clk 0:02:37.7]} 14. a3
{[%clk 0:02:33]} 14... a5 {[%clk 0:02:38]} 15. b3 {[%clk 0:02:33.5]} 15... Nfd7
{[%clk 0:02:16.9]} 16. O-O {[%clk 0:02:32.7]} 16... f5 {[%clk 0:02:16.1]} 17.
Rab1 {[%clk 0:02:31.5]} 17... Qc7 {[%clk 0:02:03.1]} 18. b4 {[%clk 0:02:29.2]}
18... axb4 {[%clk 0:02:02.5]} 19. axb4 {[%clk 0:02:29.7]} 19... Na4 {[%clk
0:02:03]} 20. c5 {[%clk 0:02:20.2]} 20... Nc3 {[%clk 0:02:02.9]} 21. Ra1 {[%clk
0:02:19.5]} 21... Nf6 {[%clk 0:02:01]} 22. Nc4 {[%clk 0:02:10.2]} 22... Rxa1
{[%clk 0:01:38.5]} 23. Rxa1 {[%clk 0:02:09.2]} 23... e4 {[%clk 0:01:39.4]} 24.
Bg2 {[%clk 0:02:08.5]} 24... Qe7 {[%clk 0:01:19.9]} 25. Nd6 {[%clk 0:02:01.5]}
25... Ng4 {[%clk 0:01:11]} 26. h3 {[%clk 0:01:31.1]} 26... Ne5 {[%clk 0:00:53]}
27. dxe4 {[%clk 0:01:21.6]} 27... f4 {[%clk 0:00:52.6]} 28. Nf5 {[%clk
0:01:12.6]} 28... fxg3 {[%clk 0:00:52.6]} 29. Nxe7+ {[%clk 0:01:12.3]} 1-0

[Event "Late-Titled-Tuesday-Blitz-February-06-2024"]
[Site "Chess.com"]
[Date "2024.02.06"]
[Round "7"]
[White "HajiyevKanan"]
[Black "TanitoluwaAps116"]
[Result "0-1"]
[WhiteElo "2605"]
[BlackElo "2815"]
[TimeControl "180+1"]
[EndTime "15:15:59 PST"]
[Termination "TanitoluwaAps116 won by resignation"]

1. d4 {[%clk 0:03:00.9]} 1... Nf6 {[%clk 0:02:59.8]} 2. Nf3 {[%clk 0:03:00.2]}
2... e6 {[%clk 0:03:00.2]} 3. c4 {[%clk 0:03:00.6]} 3... b6 {[%clk 0:03:00.3]}
4. Nc3 {[%clk 0:03:00.8]} 4... Bb7 {[%clk 0:03:00.5]} 5. Bg5 {[%clk 0:02:57.2]}
5... Bb4 {[%clk 0:02:54.7]} 6. Qb3 {[%clk 0:02:56.2]} 6... a5 {[%clk 0:02:44.9]}
7. a3 {[%clk 0:02:54]} 7... a4 {[%clk 0:02:45.3]} 8. Qc2 {[%clk 0:02:54]} 8...
Bxc3+ {[%clk 0:02:36.9]} 9. Qxc3 {[%clk 0:02:54.9]} 9... d6 {[%clk 0:02:35.2]}
10. g3 {[%clk 0:02:52.4]} 10... Nbd7 {[%clk 0:02:34.3]} 11. Bg2 {[%clk
0:02:52.6]} 11... h6 {[%clk 0:02:34.8]} 12. Bxf6 {[%clk 0:02:44.8]} 12... Nxf6
{[%clk 0:02:34.2]} 13. O-O {[%clk 0:02:45.3]} 13... O-O {[%clk 0:02:34.5]} 14.
Qc2 {[%clk 0:02:45.5]} 14... c5 {[%clk 0:02:29.6]} 15. Rfd1 {[%clk 0:02:41.9]}
15... Qc7 {[%clk 0:02:24.5]} 16. Rac1 {[%clk 0:02:41.4]} 16... Rfd8 {[%clk
0:02:21.4]} 17. d5 {[%clk 0:02:39.1]} 17... exd5 {[%clk 0:02:15.3]} 18. cxd5
{[%clk 0:02:36.9]} 18... Bxd5 {[%clk 0:02:13.7]} 19. Nh4 {[%clk 0:02:13.3]}
19... Bb3 {[%clk 0:02:05.1]} 20. Qd2 {[%clk 0:02:03.3]} 20... d5 {[%clk
0:02:03]} 21. Re1 {[%clk 0:02:00]} 21... Re8 {[%clk 0:02:02.9]} 22. Nf5 {[%clk
0:01:56.9]} 22... Rad8 {[%clk 0:02:00]} 23. e3 {[%clk 0:01:55.7]} 23... Qe5
{[%clk 0:01:57.4]} 24. Nh4 {[%clk 0:01:48.9]} 24... Ne4 {[%clk 0:01:55.5]} 25.
Qe2 {[%clk 0:01:43.5]} 25... Bc4 {[%clk 0:01:46.5]} 26. Qc2 {[%clk 0:01:42.1]}
26... Bb3 {[%clk 0:01:39.4]} 27. Qe2 {[%clk 0:01:41.4]} 27... Qf6 {[%clk
0:01:37.7]} 28. Nf3 {[%clk 0:01:35.1]} 28... g6 {[%clk 0:01:33.1]} 29. h4 {[%clk
0:01:34.6]} 29... Kg7 {[%clk 0:01:32.8]} 30. Rb1 {[%clk 0:01:26.5]} 30... d4
{[%clk 0:01:29]} 31. exd4 {[%clk 0:01:06.9]} 31... cxd4 {[%clk 0:01:27]} 32. Qb5
{[%clk 0:00:59.8]} 32... d3 {[%clk 0:01:21.6]} 33. Ng5 {[%clk 0:00:33.5]} 33...
Qxf2+ {[%clk 0:01:17.9]} 0-1

[Event "Late-Titled-Tuesday-Blitz-February-06-2024"]
[Site "Chess.com"]
[Date "2024.02.06"]
[Round "7"]
[White "Marcan2b"]
[Black "dretch"]
[Result "0-1"]
[WhiteElo "2982"]
[BlackElo "2845"]
[TimeControl "180+1"]
[EndTime "15:16:03 PST"]
[Termination "dretch won by resignation"]

1. e4 {[%clk 0:03:00.9]} 1... e6 {[%clk 0:03:00]} 2. d4 {[%clk 0:03:00.6]} 2...
d5 {[%clk 0:03:00.4]} 3. Nc3 {[%clk 0:03:01.5]} 3... Nf6 {[%clk 0:03:00.2]} 4.
Bg5 {[%clk 0:03:01.7]} 4... dxe4 {[%clk 0:02:59.7]} 5. Nxe4 {[%clk 0:03:01.2]}
5... Be7 {[%clk 0:03:00.3]} 6. Nxf6+ {[%clk 0:03:01.9]} 6... Bxf6 {[%clk
0:03:01.2]} 7. Bxf6 {[%clk 0:03:02.5]} 7... Qxf6 {[%clk 0:03:01.7]} 8. Nf3
{[%clk 0:03:03.3]} 8... c5 {[%clk 0:03:01]} 9. Qd3 {[%clk 0:02:54.8]} 9... cxd4
{[%clk 0:02:55.1]} 10. Qxd4 {[%clk 0:02:50.1]} 10... Qxd4 {[%clk 0:02:52.9]} 11.
Nxd4 {[%clk 0:02:51]} 11... Ke7 {[%clk 0:02:45.5]} 12. O-O-O {[%clk 0:02:50.3]}
12... Rd8 {[%clk 0:02:45.6]} 13. Be2 {[%clk 0:02:49.7]} 13... Nd7 {[%clk
0:02:44]} 14. Nb5 {[%clk 0:02:47.9]} 14... Nf6 {[%clk 0:02:42.3]} 15. Rxd8
{[%clk 0:02:46.4]} 15... Kxd8 {[%clk 0:02:42.3]} 16. Rd1+ {[%clk 0:02:46.3]}
16... Ke7 {[%clk 0:02:42.5]} 17. Bf3 {[%clk 0:02:40.1]} 17... Ne8 {[%clk
0:02:27.7]} 18. Rd3 {[%clk 0:02:37.8]} 18... a6 {[%clk 0:02:14.4]} 19. Nd4
{[%clk 0:02:29.6]} 19... Nd6 {[%clk 0:02:13.2]} 20. b3 {[%clk 0:02:22]} 20... e5
{[%clk 0:02:10.8]} 21. Re3 {[%clk 0:02:22]} 21... Kf6 {[%clk 0:02:05.3]} 22. Ne2
{[%clk 0:02:21.7]} 22... Bf5 {[%clk 0:02:03.4]} 23. Ng3 {[%clk 0:02:18.4]} 23...
Bg6 {[%clk 0:01:57.6]} 24. c4 {[%clk 0:02:15.3]} 24... Rc8 {[%clk 0:01:56.6]}
25. Bg4 {[%clk 0:01:58.1]} 25... Rc7 {[%clk 0:01:41.9]} 26. Ne2 {[%clk 0:01:45]}
26... Kg5 {[%clk 0:01:02.8]} 27. Bh3 {[%clk 0:01:43.3]} 27... f6 {[%clk
0:00:58]} 28. Nc3 {[%clk 0:01:05.4]} 28... b5 {[%clk 0:00:45.7]} 29. cxb5 {[%clk
0:01:04.8]} 29... axb5 {[%clk 0:00:45.2]} 30. Kb2 {[%clk 0:01:05.1]} 30... b4
{[%clk 0:00:44.3]} 31. Ne2 {[%clk 0:01:01.9]} 31... Rc2+ {[%clk 0:00:43.6]} 32.
Kb1 {[%clk 0:01:02.3]} 32... Rxe2+ {[%clk 0:00:41.7]} 0-1

[Event "Late-Titled-Tuesday-Blitz-February-06-2024"]
[Site "Chess.com"]
[Date "2024.02.06"]
[Round "7"]
[White "Cambek64"]
[Black "varunkrishnanchess"]
[Result "1/2-1/2"]
[WhiteElo "2500"]
[BlackElo "2625"]
[TimeControl "180+1"]
[EndTime "15:16:08 PST"]
[Termination "Game drawn by repetition"]

1. e4 {[%clk 0:02:59.3]} 1... c5 {[%clk 0:02:54.7]} 2. Nf3 {[%clk 0:02:59.3]}
2... e6 {[%clk 0:02:54.7]} 3. d4 {[%clk 0:02:59.4]} 3... cxd4 {[%clk 0:02:55.6]}
4. Nxd4 {[%clk 0:02:59.5]} 4... a6 {[%clk 0:02:56.3]} 5. Nc3 {[%clk 0:02:59.3]}
5... Qc7 {[%clk 0:02:56.4]} 6. Bd3 {[%clk 0:02:59.6]} 6... Nf6 {[%clk
0:02:50.8]} 7. Qe2 {[%clk 0:02:59.9]} 7... d6 {[%clk 0:02:47.9]} 8. Bd2 {[%clk
0:02:58.7]} 8... Be7 {[%clk 0:02:46.6]} 9. O-O {[%clk 0:02:57.4]} 9... O-O
{[%clk 0:02:45.9]} 10. Kh1 {[%clk 0:02:57.8]} 10... b5 {[%clk 0:02:45.5]} 11. a3
{[%clk 0:02:57.1]} 11... Bb7 {[%clk 0:02:45.4]} 12. f4 {[%clk 0:02:57.4]} 12...
Nbd7 {[%clk 0:02:44.9]} 13. b4 {[%clk 0:02:57.9]} 13... Rac8 {[%clk 0:02:33]}
14. Rae1 {[%clk 0:02:55.1]} 14... Qb8 {[%clk 0:02:32.7]} 15. Rf3 {[%clk
0:02:54.9]} 15... Rfe8 {[%clk 0:02:19.9]} 16. Rh3 {[%clk 0:02:54.6]} 16... Bf8
{[%clk 0:02:19]} 17. e5 {[%clk 0:02:54.5]} 17... dxe5 {[%clk 0:02:04.3]} 18.
fxe5 {[%clk 0:02:54.4]} 18... Nxe5 {[%clk 0:02:02.6]} 19. Qxe5 {[%clk 0:02:53]}
19... Qa8 {[%clk 0:01:53.9]} 20. Qg5 {[%clk 0:02:31.6]} 20... Red8 {[%clk
0:01:37]} 21. Rf1 {[%clk 0:02:17]} 21... Rxd4 {[%clk 0:01:31.1]} 22. Rxf6 {[%clk
0:02:15.2]} 22... Bxg2+ {[%clk 0:01:13]} 23. Kg1 {[%clk 0:01:55.6]} 23... Bxh3
{[%clk 0:01:03.9]} 24. Bxh7+ {[%clk 0:01:55]} 24... Kh8 {[%clk 0:00:49.8]} 25.
Be4 {[%clk 0:01:45.5]} 25... Rxe4 {[%clk 0:00:38.8]} 26. Qh5+ {[%clk 0:01:45.5]}
26... Kg8 {[%clk 0:00:38.5]} 27. Qxf7+ {[%clk 0:01:44.6]} 27... Kh8 {[%clk
0:00:36]} 28. Qh5+ {[%clk 0:01:34.2]} 28... Kg8 {[%clk 0:00:36.1]} 29. Qf7+
{[%clk 0:01:20.6]} 29... Kh8 {[%clk 0:00:34]} 30. Qh5+ {[%clk 0:01:07.4]} 30...
Kg8 {[%clk 0:00:33.8]} 31. Qf7+ {[%clk 0:01:07.9]} 1/2-1/2

[Event "Late-Titled-Tuesday-Blitz-February-06-2024"]
[Site "Chess.com"]
[Date "2024.02.06"]
[Round "7"]
[White "valeriocarnicelli"]
[Black "inagreV"]
[Result "1-0"]
[WhiteElo "2542"]
[BlackElo "2354"]
[TimeControl "180+1"]
[EndTime "15:16:16 PST"]
[Termination "valeriocarnicelli won by resignation"]

1. e4 {[%clk 0:03:00.9]} 1... c6 {[%clk 0:02:55.9]} 2. d4 {[%clk 0:03:00.3]}
2... d5 {[%clk 0:02:55.7]} 3. e5 {[%clk 0:03:01]} 3... c5 {[%clk 0:02:53.3]} 4.
dxc5 {[%clk 0:03:00.6]} 4... e6 {[%clk 0:02:52.4]} 5. Qg4 {[%clk 0:03:00]} 5...
Nd7 {[%clk 0:02:44.6]} 6. Bb5 {[%clk 0:02:53.5]} 6... Ne7 {[%clk 0:02:29.2]} 7.
Nf3 {[%clk 0:02:49.4]} 7... Nc6 {[%clk 0:02:28.1]} 8. O-O {[%clk 0:02:44.6]}
8... h5 {[%clk 0:02:17.3]} 9. Qg3 {[%clk 0:02:41.8]} 9... Nxc5 {[%clk
0:02:17.2]} 10. c4 {[%clk 0:02:29.1]} 10... dxc4 {[%clk 0:01:42.9]} 11. Nc3
{[%clk 0:02:26.2]} 11... Bd7 {[%clk 0:01:35.4]} 12. Rd1 {[%clk 0:02:24.5]} 12...
Qc7 {[%clk 0:01:34.7]} 13. Bg5 {[%clk 0:02:21.6]} 13... Nd3 {[%clk 0:01:24.9]}
14. Rxd3 {[%clk 0:01:56.4]} 14... cxd3 {[%clk 0:01:24.4]} 15. Ne4 {[%clk
0:01:54.1]} 15... Rc8 {[%clk 0:01:16.6]} 16. Rd1 {[%clk 0:01:46.7]} 16... Nxe5
{[%clk 0:01:10.7]} 17. Qxe5 {[%clk 0:01:40.2]} 17... Qxe5 {[%clk 0:00:28.9]} 18.
Bxd7+ {[%clk 0:01:40]} 18... Kxd7 {[%clk 0:00:29.5]} 19. Nxe5+ {[%clk
0:01:40.6]} 19... Ke8 {[%clk 0:00:29.9]} 20. Nxd3 {[%clk 0:01:38]} 20... f6
{[%clk 0:00:26.5]} 21. Be3 {[%clk 0:01:37.2]} 21... b6 {[%clk 0:00:25.8]} 22.
Nf4 {[%clk 0:01:22.1]} 22... e5 {[%clk 0:00:22.5]} 23. Ng6 {[%clk 0:01:20.6]}
23... Rg8 {[%clk 0:00:20.3]} 24. Nxf8 {[%clk 0:01:17.5]} 24... Rxf8 {[%clk
0:00:20]} 25. Nd6+ {[%clk 0:01:17.1]} 25... Ke7 {[%clk 0:00:20.3]} 26. Nxc8+
{[%clk 0:01:17.7]} 26... Rxc8 {[%clk 0:00:21.1]} 27. Rc1 {[%clk 0:01:14.7]}
27... Rd8 {[%clk 0:00:21.2]} 28. Kf1 {[%clk 0:01:14.5]} 28... Rd7 {[%clk
0:00:21.1]} 29. Ke2 {[%clk 0:01:14.8]} 29... f5 {[%clk 0:00:20.6]} 30. f3 {[%clk
0:01:14.6]} 30... f4 {[%clk 0:00:20.1]} 31. Bf2 {[%clk 0:01:14.4]} 31... Kd6
{[%clk 0:00:19.7]} 32. Rd1+ {[%clk 0:01:14.1]} 32... Ke6 {[%clk 0:00:20]} 33.
Rxd7 {[%clk 0:01:15]} 33... Kxd7 {[%clk 0:00:20.8]} 34. Kd3 {[%clk 0:01:15.5]}
34... Kd6 {[%clk 0:00:21.3]} 35. Ke4 {[%clk 0:01:16]} 35... Ke6 {[%clk
0:00:22.2]} 36. g3 {[%clk 0:01:15.4]} 1-0

[Event "Late-Titled-Tuesday-Blitz-February-06-2024"]
[Site "Chess.com"]
[Date "2024.02.06"]
[Round "7"]
[White "temus_galaktionov"]
[Black "jsdbv18"]
[Result "1-0"]
[WhiteElo "2871"]
[BlackElo "2620"]
[TimeControl "180+1"]
[EndTime "15:16:20 PST"]
[Termination "temus_galaktionov won by resignation"]

1. d4 {[%clk 0:03:00.9]} 1... f6 {[%clk 0:02:59.8]} 2. Nf3 {[%clk 0:02:59.4]}
2... e6 {[%clk 0:03:00.2]} 3. c4 {[%clk 0:02:59.4]} 3... d5 {[%clk 0:03:00.5]}
4. Nc3 {[%clk 0:02:59.5]} 4... Ne7 {[%clk 0:02:59.2]} 5. e4 {[%clk 0:02:58.7]}
5... c6 {[%clk 0:02:55.2]} 6. Bd3 {[%clk 0:02:55.9]} 6... g6 {[%clk 0:02:50.1]}
7. e5 {[%clk 0:02:42.7]} 7... fxe5 {[%clk 0:02:41.1]} 8. Nxe5 {[%clk 0:02:43.6]}
8... Nd7 {[%clk 0:02:40.8]} 9. O-O {[%clk 0:02:27.5]} 9... Nxe5 {[%clk
0:02:40.1]} 10. dxe5 {[%clk 0:02:28.4]} 10... Bg7 {[%clk 0:02:40.1]} 11. f4
{[%clk 0:02:28.5]} 11... O-O {[%clk 0:02:34.7]} 12. Ne2 {[%clk 0:02:26.3]} 12...
b6 {[%clk 0:02:23.7]} 13. Be3 {[%clk 0:02:25.3]} 13... c5 {[%clk 0:02:22.6]} 14.
cxd5 {[%clk 0:02:21.7]} 14... exd5 {[%clk 0:02:22.1]} 15. b4 {[%clk 0:02:19.5]}
15... d4 {[%clk 0:02:11.7]} 16. Bd2 {[%clk 0:02:15.9]} 16... Be6 {[%clk
0:01:57.7]} 17. bxc5 {[%clk 0:02:07.6]} 17... bxc5 {[%clk 0:01:58]} 18. Qa4
{[%clk 0:02:07.9]} 18... Kh8 {[%clk 0:01:51.4]} 19. Rfc1 {[%clk 0:02:01.8]}
19... Rc8 {[%clk 0:01:51.4]} 20. Qxa7 {[%clk 0:02:00.7]} 20... c4 {[%clk
0:01:50.1]} 21. Nxd4 {[%clk 0:01:59.9]} 21... Qd5 {[%clk 0:00:34.4]} 22. Nxe6
{[%clk 0:01:53.4]} 22... Qxe6 {[%clk 0:00:34.6]} 23. Bf1 {[%clk 0:01:51.1]}
23... Nf5 {[%clk 0:00:32.8]} 24. Rab1 {[%clk 0:01:36.8]} 24... Rfd8 {[%clk
0:00:31.5]} 25. Bc3 {[%clk 0:01:18.8]} 25... Bh6 {[%clk 0:00:31.6]} 26. Qf2
{[%clk 0:01:16.1]} 26... Bf8 {[%clk 0:00:29.2]} 27. Kh1 {[%clk 0:01:11.7]} 27...
Bc5 {[%clk 0:00:28.3]} 28. Qf3 {[%clk 0:01:11.5]} 28... Nd4 {[%clk 0:00:22.8]}
29. Qe4 {[%clk 0:01:09.9]} 29... Ba7 {[%clk 0:00:20.1]} 30. Rb7 {[%clk
0:01:07.7]} 30... Nc6 {[%clk 0:00:19.2]} 31. Bxc4 {[%clk 0:01:06.5]} 1-0

[Event "Late-Titled-Tuesday-Blitz-February-06-2024"]
[Site "Chess.com"]
[Date "2024.02.06"]
[Round "7"]
[White "igorknyazev"]
[Black "Balla_Tamas"]
[Result "1-0"]
[WhiteElo "2189"]
[BlackElo "2404"]
[TimeControl "180+1"]
[EndTime "15:16:23 PST"]
[Termination "igorknyazev won by checkmate"]

1. e4 {[%clk 0:03:00.9]} 1... c5 {[%clk 0:03:00]} 2. f4 {[%clk 0:02:59.9]} 2...
d5 {[%clk 0:02:59.4]} 3. exd5 {[%clk 0:03:00.2]} 3... Qxd5 {[%clk 0:03:00.3]} 4.
Nf3 {[%clk 0:03:00]} 4... Bg4 {[%clk 0:02:58.5]} 5. Be2 {[%clk 0:02:56.5]} 5...
Nc6 {[%clk 0:02:58.6]} 6. Nc3 {[%clk 0:02:54.1]} 6... Qd8 {[%clk 0:02:55.4]} 7.
O-O {[%clk 0:02:54.1]} 7... Nf6 {[%clk 0:02:55.8]} 8. Ne5 {[%clk 0:02:45.4]}
8... Bxe2 {[%clk 0:02:50.7]} 9. Qxe2 {[%clk 0:02:44.3]} 9... Nd4 {[%clk
0:02:49.8]} 10. Qc4 {[%clk 0:02:34.3]} 10... e6 {[%clk 0:02:48.4]} 11. Qa4+
{[%clk 0:02:23.8]} 11... Nd7 {[%clk 0:02:38.8]} 12. Ne4 {[%clk 0:02:21.9]} 12...
b5 {[%clk 0:02:27.9]} 13. Qa6 {[%clk 0:02:13.9]} 13... Nxe5 {[%clk 0:02:22.7]}
14. fxe5 {[%clk 0:02:10.4]} 14... Be7 {[%clk 0:02:19.6]} 15. c3 {[%clk
0:01:57.1]} 15... Qd5 {[%clk 0:02:05.1]} 16. cxd4 {[%clk 0:01:41.3]} 16... Qxe4
{[%clk 0:02:04.1]} 17. Qxb5+ {[%clk 0:01:39.9]} 17... Kd8 {[%clk 0:01:59.8]} 18.
dxc5 {[%clk 0:01:15]} 18... Qxe5 {[%clk 0:01:48.6]} 19. d4 {[%clk 0:00:57.1]}
19... Qxd4+ {[%clk 0:01:09.5]} 20. Be3 {[%clk 0:00:48.9]} 20... Qxe3+ {[%clk
0:01:08.4]} 21. Kh1 {[%clk 0:00:49.1]} 21... Kc7 {[%clk 0:00:55.9]} 22. Rxf7
{[%clk 0:00:39]} 22... Rae8 {[%clk 0:00:51.4]} 23. Rd1 {[%clk 0:00:36.7]} 23...
Qxc5 {[%clk 0:00:36.5]} 24. Rd7+ {[%clk 0:00:34.9]} 24... Kc8 {[%clk 0:00:32.1]}
25. Qb7# {[%clk 0:00:35.3]} 1-0

[Event "Late-Titled-Tuesday-Blitz-February-06-2024"]
[Site "Chess.com"]
[Date "2024.02.06"]
[Round "7"]
[White "bilelou"]
[Black "masnyszachistaaa"]
[Result "1-0"]
[WhiteElo "2746"]
[BlackElo "2545"]
[TimeControl "180+1"]
[EndTime "15:16:24 PST"]
[Termination "bilelou won on time"]

1. e4 {[%clk 0:03:00.9]} 1... d6 {[%clk 0:02:51.5]} 2. d4 {[%clk 0:03:00.4]}
2... Nf6 {[%clk 0:02:49.5]} 3. Nc3 {[%clk 0:02:59.9]} 3... e5 {[%clk 0:02:49.2]}
4. Nge2 {[%clk 0:02:57.1]} 4... Nbd7 {[%clk 0:02:41.8]} 5. h3 {[%clk 0:02:57.6]}
5... exd4 {[%clk 0:02:33.9]} 6. Nxd4 {[%clk 0:02:54]} 6... Nc5 {[%clk
0:02:34.5]} 7. Qf3 {[%clk 0:02:53.1]} 7... Be7 {[%clk 0:02:26.8]} 8. Be3 {[%clk
0:02:48.8]} 8... c6 {[%clk 0:02:25.6]} 9. O-O-O {[%clk 0:02:49.3]} 9... Qa5
{[%clk 0:02:18.7]} 10. g4 {[%clk 0:02:43.3]} 10... Be6 {[%clk 0:01:40.7]} 11.
Kb1 {[%clk 0:02:41.6]} 11... O-O-O {[%clk 0:01:35.6]} 12. Nf5 {[%clk 0:02:18.3]}
12... Bxf5 {[%clk 0:01:29.8]} 13. Qxf5+ {[%clk 0:02:15.8]} 13... Kb8 {[%clk
0:01:01.4]} 14. g5 {[%clk 0:02:05.6]} 14... g6 {[%clk 0:00:35.1]} 15. Qf3 {[%clk
0:02:02.6]} 15... Nfd7 {[%clk 0:00:15]} 16. Qxf7 {[%clk 0:01:59.9]} 16... Rde8
{[%clk 0:00:15.3]} 17. Qc4 {[%clk 0:01:54]} 17... Ne5 {[%clk 0:00:14.8]} 18. Qd4
{[%clk 0:01:54.3]} 18... Nf3 {[%clk 0:00:13.6]} 19. Qc4 {[%clk 0:01:51.3]} 19...
Bxg5 {[%clk 0:00:11]} 20. Bxg5 {[%clk 0:01:41.5]} 20... Nxg5 {[%clk 0:00:11.9]}
21. Bg2 {[%clk 0:01:41.8]} 21... Qc7 {[%clk 0:00:08.9]} 22. f4 {[%clk
0:01:40.6]} 22... Nge6 {[%clk 0:00:09.2]} 23. Rhf1 {[%clk 0:01:41.1]} 23... Rhf8
{[%clk 0:00:08.9]} 24. f5 {[%clk 0:01:41.8]} 24... gxf5 {[%clk 0:00:03.3]} 25.
exf5 {[%clk 0:01:42.7]} 25... Ng5 {[%clk 0:00:04.1]} 26. Qf4 {[%clk 0:01:41.3]}
26... Nf7 {[%clk 0:00:04.1]} 27. h4 {[%clk 0:01:41.3]} 27... Ne5 {[%clk
0:00:04.6]} 28. Qd4 {[%clk 0:01:41.5]} 28... Rd8 {[%clk 0:00:04.1]} 29. f6
{[%clk 0:01:38.4]} 29... Qf7 {[%clk 0:00:04.1]} 30. Qf4 {[%clk 0:01:37.2]} 30...
Qe6 {[%clk 0:00:04]} 31. Ne4 {[%clk 0:01:32.8]} 31... h6 {[%clk 0:00:03.5]} 32.
Nxc5 {[%clk 0:01:32.3]} 32... dxc5 {[%clk 0:00:03]} 33. Rde1 {[%clk 0:01:32.7]}
33... Rde8 {[%clk 0:00:02.4]} 34. Re2 {[%clk 0:01:29.4]} 34... Ka8 {[%clk
0:00:01.7]} 35. a3 {[%clk 0:01:26.8]} 1-0